[Event "1000GM Schev-G5 March 2024"]
[Site "Santa Clara"]
[Date "2024.03.10"]
[Round "2.5"]
[White "Jin, Austin"]
[Black "Gongora Montes, Benjamin"]
[Result "1/2-1/2"]
[ECO "C02"]
[WhiteElo "1950"]
[BlackElo "2106"]
[Annotator "RC"]
[PlyCount "61"]
[EventDate "2024.03.06"]
[EventType "schev"]
[EventCountry "USA"]
[SourceTitle "playchess.com"]
[Source "ChessBase"]
[SourceQuality "1"]
[TimeControl "5400+30"]

1. e4 {[%emt 0:03:38]} e6 {[%emt 0:00:11]} 2. d4 {[%emt 0:00:16]} d5 {[%emt 0:00:02]} 3. e5 {[%emt 0:00:07]} c5 {[%emt 0:00:06]} 4. c3 {[%emt 0:00:10]} Qb6 {[%emt 0:00:06]} 5. Nf3 {[%emt 0:00:19]} Bd7 {[%emt 0:00:11]} 6. Be2 {[%emt 0:00:36]} Bb5 {[%emt 0:00:09]} 7. O-O {[%emt 0:00:35]} Bxe2 {[%emt 0:02:08]} 8. Qxe2 {[%emt 0:00:02]} cxd4 {[%emt 0:00:12]} 9. cxd4 {[%emt 0:00:43]} Nc6 {[%emt 0:00:09]} 10. Rd1 {[%emt 0:01:38]} Nge7 {[%emt 0:00:11]} 11. Nc3 {[%emt 0:01:07]} Nf5 {[%emt 0:00:16]} 12. Qd3 {[%emt 0:00:44]} Be7 {[%emt 0:02:23]} 13. Nxd5 {[%emt 0:06:44]} Qd8 {[%emt 0:04:20]} 14. Ne3 {[%emt 0:06:26]} Nxe3 {[%emt 0:00:49]} 15. Bxe3 {[%emt 0:00:08]} Qd5 {[%emt 0:00:36]} 16. Bg5 {[%emt 0:09:56]} Bxg5 {[%emt 0:05:29]} 17. Nxg5 {[%emt 0:00:06]} Rd8 {[%emt 0:00:09]} 18. Qf3 {[%emt 0:08:10]} O-O {[%emt 0:02:40]} 19. Qd3 {[%emt 0:15:07]} f5 {[%emt 0:00:29]} 20. Nf3 {[%emt 0:02:19]} Rd7 {[%emt 0:01:01]} 21. h4 {[%emt 0:08:41]} Rfd8 {[%emt 0:00:36]} 22. Qc3 {[%emt 0:03:18]} h6 {[%emt 0:08:04]} 23. Rd2 {[%emt 0:03:58]} Kh7 {[%emt 0:01:05]} 24. b3 {[%emt 0:01:34]} Qe4 {[%emt 0:02:41]} 25. Rad1 {[%emt 0:02:04]} Ne7 {[%emt 0:04:45]} 26. Qc5 {[%emt 0:04:57]} a6 {[%emt 0:01:11]} 27. Qb6 {[%emt 0:01:45]} Nc6 {[%emt 0:02:40]} 28. Re1 {[%emt 0:01:01]} Qf4 {[%emt 0:01:16]} 29. Red1 {[%emt 0:00:23]} Qe4 {[%emt 0:03:10]} 30. Re1 {[%emt 0:00:21]} Qf4 {[%emt 0:00:09]} 31. Red1 {[%emt 0:01:21]} 1/2-1/2

[Event "1000GM Schev-G5 March 2024"]
[Site "Santa Clara"]
[Date "2024.03.10"]
[Round "3.1"]
[White "Zhou, Ivan"]
[Black "Urbina Quiroz, Edwin"]
[Result "0-1"]
[ECO "C96"]
[WhiteElo "1905"]
[BlackElo "2047"]
[Annotator "RC"]
[PlyCount "48"]
[EventDate "2024.03.06"]
[EventType "schev"]
[EventCountry "USA"]
[SourceTitle "playchess.com"]
[Source "ChessBase"]
[SourceQuality "1"]
[TimeControl "5400+30"]

1. e4 {[%emt 0:00:30]} e5 {[%emt 0:00:05]} 2. Nf3 {[%emt 0:00:16]} Nc6 {[%emt 0:00:05]} 3. Bb5 {[%emt 0:00:24]} a6 {[%emt 0:00:19]} 4. Ba4 {[%emt 0:00:07]} Nf6 {[%emt 0:00:07]} 5. O-O {[%emt 0:00:13]} Be7 {[%emt 0:00:05]} 6. Re1 {[%emt 0:00:23]} b5 {[%emt 0:00:15]} 7. Bb3 {[%emt 0:00:09]} d6 {[%emt 0:00:23]} 8. c3 {[%emt 0:00:23]} O-O {[%emt 0:00:20]} 9. h3 {[%emt 0:00:39]} Na5 {[%emt 0:01:18]} 10. Bc2 {[%emt 0:00:11]} d5 {[%emt 0:00:15]} 11. d4 {[%emt 0:01:35]} dxe4 {[%emt 0:00:57]} 12. Nxe5 {[%emt 0:01:06]} c5 {[%emt 0:00:39]} 13. dxc5 {[%emt 0:03:36]} Qc7 {[%emt 0:00:02]} 14. Bf4 {[%emt 0:01:28]} Bxc5 {[%emt 0:00:07]} 15. b4 {[%emt 0:05:41]} Bd6 {[%emt 0:02:11]} 16. Bxe4 {[%emt 0:09:02]} Nxe4 {[%emt 0:08:07]} 17. Rxe4 {[%emt 0:00:13]} Bb7 {[%emt 0:13:31]} 18. Re1 {[%emt 0:06:24]} Nc6 {[%emt 0:09:33]} 19. Ng6 {[%emt 0:40:33]} Bxf4 {[%emt 0:00:17]} 20. Nxf8 {[%emt 0:00:06]} Rxf8 {[%emt 0:00:50]} 21. Na3 {[%emt 0:28:01]} Ne5 {[%emt 0:02:48]} 22. Qd4 {[%emt 0:00:00]} Qc6 {[%emt 0:04:14]} 23. f3 {[%emt 0:00:00]} Nxf3+ {[%emt 0:00:08]} 24. gxf3 {[%emt 0:00:00]} Qxf3 {[%emt 0:00:06]} 0-1

[Event "1000GM Schev-G5 March 2024"]
[Site "Santa Clara"]
[Date "2024.03.10"]
[Round "3.3"]
[White "Varela Velazquez, Carlos Francisco"]
[Black "Bhaduri, Neil S"]
[Result "1/2-1/2"]
[ECO "D02"]
[WhiteElo "2113"]
[BlackElo "1917"]
[Annotator "RC"]
[PlyCount "57"]
[EventDate "2024.03.06"]
[EventType "schev"]
[EventCountry "USA"]
[SourceTitle "playchess.com"]
[Source "ChessBase"]
[SourceQuality "1"]
[TimeControl "5400+30"]

1. Nf3 {[%emt 0:01:10]} Nf6 {[%emt 0:00:10]} 2. g3 {[%emt 0:02:07]} d5 {[%emt 0:00:15]} 3. Bg2 {[%emt 0:00:03]} c5 {[%emt 0:00:04]} 4. O-O {[%emt 0:00:05]} Nc6 {[%emt 0:00:03]} 5. d4 {[%emt 0:00:03]} cxd4 {[%emt 0:00:07]} 6. Nxd4 {[%emt 0:00:05]} e5 {[%emt 0:00:18]} 7. Nxc6 {[%emt 0:00:03]} bxc6 {[%emt 1:33:03]} 8. c4 {[%emt 0:00:01]} Rb8 {[%emt 0:00:00]} 9. Bg5 {[%emt 0:07:51]} d4 {[%emt 0:00:00]} 10. Bxc6+ {[%emt 0:20:39]} Bd7 {[%emt 0:00:00]} 11. Bxd7+ {[%emt 0:09:49]} Qxd7 {[%emt 0:00:00]} 12. Nd2 {[%emt 0:02:22]} Rxb2 {[%emt 0:00:00]} 13. Rb1 {[%emt 0:00:15]} Rb6 {[%emt 0:00:00]} 14. Nf3 {[%emt 0:17:21]} Qc7 {[%emt 0:00:00]} 15. Qa4+ {[%emt 0:03:27]} Nd7 {[%emt 0:00:00]} 16. Rxb6 {[%emt 0:21:36]} axb6 {[%emt 0:00:00]} 17. Qa8+ {[%emt 0:00:15]} Qb8 {[%emt 0:00:00]} 18. Qc6 {[%emt 0:00:14]} Bd6 {[%emt 0:00:00]} 19. e3 {[%emt 0:04:26]} d3 {[%emt 0:00:00]} 20. e4 {[%emt 0:02:25]} f6 {[%emt 0:00:00]} 21. Be3 {[%emt 0:00:02]} Ke7 {[%emt 0:00:00]} 22. Qd5 {[%emt 0:00:16]} Qa8 {[%emt 0:00:00]} 23. Qxd3 {[%emt 0:00:18]} Qxa2 {[%emt 0:00:00]} 24. Rd1 {[%emt 0:01:31]} Qa3 {[%emt 0:00:00]} 25. Qd5 {[%emt 0:00:37]} Rd8 {[%emt 0:00:00]} 26. Ne1 {[%emt 0:02:46]} Bc5 {[%emt 0:00:00]} 27. Nc2 {[%emt 0:00:07]} Qa8 {[%emt 0:00:00]} 28. Qd3 {[%emt 0:00:37]} Nf8 {[%emt 0:00:00]} 29. Bxc5+ {[%emt 0:00:09]} 1/2-1/2

[Event "1000GM Schev-G5 March 2024"]
[Site "Santa Clara"]
[Date "2024.03.10"]
[Round "3.4"]
[White "Gongora Montes, Benjamin"]
[Black "Bhatta, Rohit"]
[Result "1/2-1/2"]
[ECO "D63"]
[WhiteElo "2106"]
[BlackElo "1952"]
[Annotator "RC"]
[PlyCount "40"]
[EventDate "2024.03.06"]
[EventType "schev"]
[EventCountry "USA"]
[SourceTitle "playchess.com"]
[Source "ChessBase"]
[SourceQuality "1"]
[TimeControl "5400+30"]

1. d4 {[%emt 0:00:02]} Nf6 {[%emt 0:02:21]} 2. c4 {[%emt 0:00:14]} e6 {[%emt 0:00:27]} 3. Nf3 {[%emt 0:00:08]} d5 {[%emt 0:00:06]} 4. Nc3 {[%emt 0:00:08]} Be7 {[%emt 0:00:26]} 5. Bg5 {[%emt 0:00:12]} Nbd7 {[%emt 0:00:39]} 6. e3 {[%emt 0:00:16]} h6 {[%emt 0:00:30]} 7. Bh4 {[%emt 0:00:18]} O-O {[%emt 0:00:21]} 8. Rc1 {[%emt 0:00:27]} c5 {[%emt 0:00:28]} 9. cxd5 {[%emt 0:01:09]} Nxd5 {[%emt 0:00:17]} 10. Bxe7 {[%emt 0:01:05]} Nxe7 {[%emt 0:00:05]} 11. Bd3 {[%emt 0:00:35]} cxd4 {[%emt 0:00:27]} 12. exd4 {[%emt 0:00:17]} Nf6 {[%emt 0:01:06]} 13. O-O {[%emt 0:00:12]} b6 {[%emt 0:03:46]} 14. Ne4 {[%emt 0:03:01]} Ned5 {[%emt 0:04:34]} 15. Ne5 {[%emt 0:11:33]} Bb7 {[%emt 0:02:36]} 16. Qf3 {[%emt 0:00:30]} Qe7 {[%emt 0:04:52]} 17. Bb1 {[%emt 0:06:15]} Rac8 {[%emt 0:02:54]} 18. Rcd1 {[%emt 0:01:14]} Rc7 {[%emt 0:03:03]} 19. Rfe1 {[%emt 0:01:08]} Nxe4 {[%emt 0:04:43]} 20. Qxe4 {[%emt 0:01:56]} Nf6 {[%emt 0:03:32]} 1/2-1/2

[Event "1000GM Schev-G5 March 2024"]
[Site "Santa Clara"]
[Date "2024.03.10"]
[Round "3.5"]
[White "Jin, Austin"]
[Black "Garcia Lopez, Miguel Angel"]
[Result "1/2-1/2"]
[ECO "C55"]
[WhiteElo "1950"]
[BlackElo "2262"]
[Annotator "TA"]
[PlyCount "40"]
[EventDate "2024.03.06"]
[EventType "schev"]
[EventCountry "USA"]
[SourceTitle "playchess.com"]
[Source "ChessBase"]
[SourceQuality "1"]
[TimeControl "5400+30"]

{[%evp 16,40,64,46,65,20,42,0,0,9,18,27,14,14,38,47,40,37,42,0,0,0,19,10,10,11,10]} 1. e4 {[%emt 0:06:19]} e5 {[%emt 0:00:06]} 2. Nf3 {[%emt 0:00:03]} Nc6 {[%emt 0:00:06]} 3. Bc4 {[%emt 0:00:14]} Nf6 {[%emt 0:00:09]} 4. d3 {[%emt 0:00:05]} Be7 {[%emt 0:00:08]} 5. O-O {[%emt 0:00:36]} O-O {[%emt 0:00:07]} 6. h3 {[%emt 0:01:02]} d5 {[%emt 0:00:58]} 7. exd5 {[%emt 0:00:18]} Nxd5 {[%emt 0:00:09]} 8. Re1 {[%emt 0:01:20]} Nb6 {[%emt 0:01:11]} 9. Bb3 {[%emt 0:01:54]} (9. Nxe5 $2 {loses.} Nxe5 10. Bb3 Ng6 $19) 9... Bd6 {[%emt 0:00:09]} 10. c3 {[%emt 0:02:38]} h6 {[%emt 0:01:05]} 11. d4 {[%emt 0:02:51]} exd4 {[%emt 0:01:08]} 12. Nxd4 {[%emt 0:04:09]} Qf6 {[%emt 0:01:52]} 13. Nxc6 {[%emt 0:06:05]} bxc6 {[%emt 0:00:02]} 14. Nd2 {[%emt 0:01:53]} Bf5 {[%emt 0:01:43]} 15. Ne4 {[%emt 0:05:22]} Qg6 {[%emt 0:00:08]} 16. Nxd6 {[%emt 0:01:48]} cxd6 {[%emt 0:00:13]} 17. Qf3 {[%emt 0:01:42]} d5 {[%emt 0:00:44] The position is equal.} 18. Bf4 {[%emt 0:00:56]} Rfe8 {[%emt 0:01:38]} 19. Qg3 {[%emt 0:01:12]} Qxg3 {[%emt 0:07:44]} 20. Bxg3 {[%emt 0:00:11]} Nc4 {[%emt 0:00:05] Weighted Error Value: White=0.13 (very precise) /Black=0.08 (flawless) .  Inaccurate:     	White=3     	---        OK:         	White=4     	Black=5      Best:        	---       	Black=1} 1/2-1/2

[Event "1000GM Schev-G5 March 2024"]
[Site "Santa Clara"]
[Date "2024.03.10"]
[Round "4.3"]
[White "Bhaduri, Neil S"]
[Black "Gongora Montes, Benjamin"]
[Result "0-1"]
[ECO "D07"]
[WhiteElo "1917"]
[BlackElo "2106"]
[Annotator "RC"]
[PlyCount "56"]
[EventDate "2024.03.06"]
[EventType "schev"]
[EventCountry "USA"]
[SourceTitle "playchess.com"]
[Source "ChessBase"]
[SourceQuality "1"]
[TimeControl "5400+30"]

1. Nf3 {[%emt 0:00:01]} Nc6 {[%emt 0:00:12]} 2. d4 {[%emt 0:00:07]} d5 {[%emt 0:00:06]} 3. c4 {[%emt 0:00:04]} Bg4 {[%emt 0:00:05]} 4. cxd5 {[%emt 0:00:06]} Bxf3 {[%emt 0:00:06]} 5. gxf3 {[%emt 0:00:04]} Qxd5 {[%emt 0:00:10]} 6. e3 {[%emt 0:00:02]} e5 {[%emt 0:00:06]} 7. Nc3 {[%emt 0:00:03]} Bb4 {[%emt 0:00:07]} 8. Bd2 {[%emt 0:00:08]} Bxc3 {[%emt 0:00:09]} 9. bxc3 {[%emt 0:00:27]} Qd6 {[%emt 0:00:08]} 10. Rg1 {[%emt 0:15:06]} Nge7 {[%emt 0:14:23]} 11. f4 {[%emt 0:14:49]} exd4 {[%emt 0:04:18]} 12. cxd4 {[%emt 0:00:11]} O-O {[%emt 0:00:13]} 13. Qg4 {[%emt 0:09:16]} g6 {[%emt 0:01:16]} 14. Bc4 {[%emt 0:04:20]} Nxd4 {[%emt 0:34:21]} 15. exd4 {[%emt 0:00:30]} Qxd4 {[%emt 0:00:13]} 16. Rc1 {[%emt 0:00:09]} Rfe8 {[%emt 0:01:05]} 17. Be3 {[%emt 0:04:04]} Nd5 {[%emt 0:00:15]} 18. Bxd5 {[%emt 0:00:54]} Rxe3+ {[%emt 0:00:23]} 19. fxe3 {[%emt 0:01:14]} Qxe3+ {[%emt 0:00:21]} 20. Kd1 {[%emt 0:01:31]} Rd8 {[%emt 0:14:44]} 21. Qg2 {[%emt 0:12:42]} Qd4+ {[%emt 0:06:06]} 22. Ke2 {[%emt 0:05:07]} Re8+ {[%emt 0:00:19]} 23. Kf3 {[%emt 0:03:05]} Qxd5+ {[%emt 0:00:38]} 24. Kf2 {[%emt 0:01:19]} Qd4+ {[%emt 0:00:21]} 25. Kg3 {[%emt 0:03:32]} Re3+ {[%emt 0:00:09]} 26. Kg4 {[%emt 0:01:46]} f5+ {[%emt 0:00:57]} 27. Kg5 {[%emt 0:00:23]} Qd8+ {[%emt 0:00:12]} 28. Kh6 {[%emt 0:00:11]} Qh4# {[%emt 0:00:34]} 0-1

[Event "1000GM Schev-G5 March 2024"]
[Site "Santa Clara"]
[Date "2024.03.10"]
[Round "4.4"]
[White "Bhatta, Rohit"]
[Black "Garcia Lopez, Miguel Angel"]
[Result "1/2-1/2"]
[ECO "D20"]
[WhiteElo "1952"]
[BlackElo "2262"]
[Annotator "TA"]
[PlyCount "54"]
[EventDate "2024.03.06"]
[EventType "schev"]
[EventCountry "USA"]
[SourceTitle "playchess.com"]
[Source "ChessBase"]
[SourceQuality "1"]
[TimeControl "5400+30"]

{[%evp 9,54,-5,0,0,0,-13,0,-3,0,0,0,-12,-4,-31,0,6,0,11,5,0,0,0,17,14,11,14,40,32,23,25,75,68,218,203,612,602,567,170,173,170,167,0,163,0,154,0,153]} 1. d4 {[%emt 0:05:58]} d5 {[%emt 0:00:07]} 2. c4 {[%emt 0:00:08]} dxc4 {[%emt 0:00:05]} 3. e3 {[%emt 0:00:16]} Nc6 {[%emt 0:00:42]} 4. Bxc4 {[%emt 0:00:35]} e5 {[%emt 0:00:08]} 5. d5 {[%emt 0:04:39]} Na5 {[%emt 0:02:51]} 6. Qa4+ {[%emt 0:05:14]} c6 {[%emt 0:00:09]} 7. dxc6 {[%emt 0:00:52]} Nxc6 {[%emt 0:00:23]} 8. Nf3 {[%emt 0:04:34]} Bd6 {[%emt 0:00:21]} 9. O-O {[%emt 0:03:34]} Nf6 {[%emt 0:01:27]} 10. Nc3 {[%emt 0:02:34]} O-O {[%emt 0:01:58]} 11. h3 {[%emt 0:08:01]} h6 {[%emt 0:02:28]} 12. e4 {[%emt 0:04:49]} Qe7 {[%emt 0:05:48]} 13. Be3 {[%emt 0:07:19]} Bd7 {[%emt 0:03:10]} 14. Qc2 {[%emt 0:00:49]} Rac8 {[%emt 0:01:03][%cal Oc6d4]} 15. Qe2 {[%emt 0:00:41]} Rfe8 {[%emt 0:03:37]} 16. Rfd1 {[%emt 0:02:47]} a6 {[%emt 0:06:02]} 17. a3 {[%emt 0:04:25]} b5 {[%emt 0:06:50]} 18. Nd5 {[%emt 0:04:30]} Nxd5 {[%emt 0:02:50]} 19. Bxd5 {[%emt 0:00:03]} Nd8 {[%emt 0:14:56]} (19... Be6 $11 {keeps the balance.}) 20. Qd2 {[%emt 0:05:12][%cal Oe3h6] White has more active pieces.} Rf8 {[%emt 0:05:52] [#]} (20... Qf6 $14) 21. Bxh6 $1 $18 {[%emt 0:04:25] Strongly threatening Bg5.} gxh6 {[%emt 0:10:59]} (21... Kh7) 22. Qxh6 {[%emt 0:00:17]} Ne6 {[%emt 0:00:09] Dodges Ng5} 23. Bxe6 $2 {[%emt 0:03:15]} (23. Rd3) 23... fxe6 {[%emt 0:00:28]} 24. Qg6+ {[%emt 0:06:52]} Kh8 {[%emt 0:00:10]} 25. Qh6+ {[%emt 0:09:02][%mdl 1024] White has strong compensation.} Kg8 {[%emt 0:00:08]} 26. Qg6+ {[%emt 0:00:58]} Kh8 {[%emt 0:00:08]} 27. Qh6+ {[%emt 0:02:12]} Kg8 {[%emt 0:01:04] Weighted Error Value: White=0.53/Black=0.50.  Mistake:       	---       	Black=3      Inaccurate:     	White=1     	Black=2      OK:         	White=9     	Black=6      Best:        	---       	Black=5} 1/2-1/2

[Event "1000GM Schev-G5 March 2024"]
[Site "Santa Clara"]
[Date "2024.03.10"]
[Round "4.5"]
[White "Urbina Quiroz, Edwin"]
[Black "Jin, Austin"]
[Result "1-0"]
[ECO "C50"]
[WhiteElo "2047"]
[BlackElo "1950"]
[Annotator "RC"]
[PlyCount "39"]
[EventDate "2024.03.06"]
[EventType "schev"]
[EventCountry "USA"]
[SourceTitle "playchess.com"]
[Source "ChessBase"]
[SourceQuality "1"]
[TimeControl "5400+30"]

1. e4 {[%emt 0:04:39]} e5 {[%emt 0:00:08]} 2. Nf3 {[%emt 0:00:03]} Nc6 {[%emt 0:00:08]} 3. Bc4 {[%emt 0:00:03]} Bc5 {[%emt 0:00:12]} 4. O-O {[%emt 0:00:04]} Nf6 {[%emt 0:00:21]} 5. d4 {[%emt 0:00:04]} Bxd4 {[%emt 0:01:43]} 6. Nxd4 {[%emt 0:01:15]} Nxd4 {[%emt 0:01:06]} 7. Bg5 {[%emt 0:00:34]} h6 {[%emt 0:03:33]} 8. Bh4 {[%emt 0:00:02]} g5 {[%emt 0:06:40]} 9. f4 {[%emt 0:02:45]} d5 {[%emt 0:18:55]} 10. exd5 {[%emt 0:57:25]} Bg4 {[%emt 0:09:31]} 11. Qe1 {[%emt 0:01:53]} e4 {[%emt 0:23:57]} 12. fxg5 {[%emt 0:03:29]} hxg5 {[%emt 0:02:33]} 13. Bxg5 {[%emt 0:02:20]} Qd6 {[%emt 0:00:11]} 14. Rxf6 {[%emt 0:16:55]} Nf3+ {[%emt 0:00:49]} 15. Rxf3 {[%emt 0:00:21]} Bxf3 {[%emt 0:00:06]} 16. Qg3 {[%emt 0:04:44]} Qb6+ {[%emt 0:00:47]} 17. Kh1 {[%emt 0:01:00]} Qxb2 {[%emt 0:01:57]} 18. Qxc7 {[%emt 0:01:17]} f6 {[%emt 0:00:13]} 19. d6 {[%emt 0:00:27]} Bxg2+ {[%emt 0:04:24]} 20. Kxg2 {[%emt 0:00:09]} 1-0

[Event "1000GM Schev-G5 March 2024"]
[Site "Santa Clara"]
[Date "2024.03.11"]
[Round "5.1"]
[White "Zhou, Ivan"]
[Black "Varela Velazquez, Carlos Francisco"]
[Result "1-0"]
[ECO "C70"]
[WhiteElo "1905"]
[BlackElo "2113"]
[Annotator "RC"]
[PlyCount "67"]
[EventDate "2024.03.06"]
[EventType "schev"]
[EventCountry "USA"]
[SourceTitle "playchess.com"]
[Source "ChessBase"]
[SourceQuality "1"]
[TimeControl "5400+30"]

1. e4 {[%emt 0:01:18]} e5 {[%emt 0:00:09]} 2. Nf3 {[%emt 0:00:23]} Nc6 {[%emt 0:00:06]} 3. Bb5 {[%emt 0:00:13]} a6 {[%emt 0:00:04]} 4. Ba4 {[%emt 0:00:08]} Nge7 {[%emt 0:01:27]} 5. c3 {[%emt 0:04:41]} g6 {[%emt 0:02:05]} 6. d4 {[%emt 0:03:49]} exd4 {[%emt 0:00:06]} 7. cxd4 {[%emt 0:01:01]} Bg7 {[%emt 0:00:05]} 8. d5 {[%emt 0:03:40]} b5 {[%emt 0:00:05]} 9. Bc2 {[%emt 0:01:30]} Na5 {[%emt 0:03:11]} 10. Bd2 {[%emt 0:14:52]} c5 {[%emt 0:12:40]} 11. Bc3 {[%emt 0:02:05]} O-O {[%emt 0:01:51]} 12. O-O {[%emt 0:03:41]} d6 {[%emt 0:01:20]} 13. Nbd2 {[%emt 0:02:48]} Bd7 {[%emt 0:06:34]} 14. a4 {[%emt 0:05:09]} Bxc3 {[%emt 0:16:54]} 15. bxc3 {[%emt 0:02:13]} f6 {[%emt 0:00:01]} 16. Qe2 {[%emt 0:03:50]} g5 {[%emt 0:01:27]} 17. c4 {[%emt 0:04:53]} Ng6 {[%emt 0:05:15]} 18. axb5 {[%emt 0:03:24]} axb5 {[%emt 0:03:32]} 19. cxb5 {[%emt 0:01:37]} Nf4 {[%emt 0:00:20]} 20. Qe3 {[%emt 0:00:17]} Bxb5 {[%emt 0:02:22]} 21. Rfb1 {[%emt 0:00:57]} Qd7 {[%emt 0:10:14]} 22. g3 {[%emt 0:01:53]} Ng6 {[%emt 0:00:58]} 23. Qc3 {[%emt 0:00:39]} Nb7 {[%emt 0:09:09]} 24. Rxa8 {[%emt 0:00:33]} Rxa8 {[%emt 0:00:02]} 25. Qxf6 {[%emt 0:01:29]} g4 {[%emt 0:00:06]} 26. Ng5 {[%emt 0:01:03]} Ne5 {[%emt 0:03:59]} 27. Ne6 {[%emt 0:02:18]} Ba6 {[%emt 0:07:29]} 28. Rb6 {[%emt 0:01:29]} Bd3 {[%emt 0:11:25]} 29. Ba4 {[%emt 0:01:23]} Qf7 {[%emt 0:00:02]} 30. Qxf7+ {[%emt 0:00:10]} Nxf7 {[%emt 0:00:01]} 31. Rxb7 {[%emt 0:00:30]} Rxa4 {[%emt 0:00:03]} 32. Rb8+ {[%emt 0:00:09]} Nd8 {[%emt 0:00:00]} 33. Rxd8+ {[%emt 0:00:07]} Kf7 {[%emt 0:00:01]} 34. Nf4 {[%emt 0:01:14]} 1-0

[Event "1000GM Schev-G5 March 2024"]
[Site "Santa Clara"]
[Date "2024.03.11"]
[Round "5.3"]
[White "Garcia Lopez, Miguel Angel"]
[Black "Bhaduri, Neil S"]
[Result "1/2-1/2"]
[ECO "B11"]
[WhiteElo "2262"]
[BlackElo "1917"]
[Annotator "TA"]
[PlyCount "90"]
[EventDate "2024.03.06"]
[EventType "schev"]
[EventCountry "USA"]
[SourceTitle "playchess.com"]
[Source "ChessBase"]
[SourceQuality "1"]
[TimeControl "5400+30"]

{[%evp 10,90,19,17,22,17,21,22,23,25,20,22,23,30,29,33,30,26,40,30,37,31,38,18,42,38,43,16,18,9,15,18,19,19,19,17,20,2,20,0,15,0,19,16,28,15,15,15,28,21,27,8,9,-15,8,-23,7,0,7,0,0,-21,-2,-17,0,0,0,0,0,0,0,0,0,0,0,0,0,0,0,0,0,0,0]} 1. e4 {[%emt 0:01:43]} c6 {[%emt 0:00:01]} 2. Nc3 {[%emt 0:01:07]} d5 {[%emt 0:00:02]} 3. Nf3 {[%emt 0:00:11]} dxe4 {[%emt 0:00:02]} 4. Nxe4 {[%emt 0:00:12]} Nf6 {[%emt 0:00:03]} 5. Qe2 {[%emt 0:00:07]} Nxe4 {[%emt 0:00:05]} 6. Qxe4 {[%emt 0:00:07]} Qa5 {[%emt 0:00:01]} 7. Bc4 {[%emt 0:02:45]} Bf5 {[%emt 0:00:07]} 8. Qe2 {[%emt 0:01:50]} e6 {[%emt 0:01:19]} 9. c3 {[%emt 0:00:31]} Bd6 {[%emt 0:01:15]} 10. Nh4 {[%emt 0:02:56]} Nd7 {[%emt 0:08:16]} 11. Nxf5 {[%emt 0:04:46]} Qxf5 {[%emt 0:01:07]} 12. d4 {[%emt 0:00:09] Pariert Ne5.} Nf6 {[%emt 0:05:02]} 13. a4 {[%emt 0:02:17]} O-O {[%emt 0:08:02]} 14. O-O {[%emt 0:00:53]} Rfe8 {[%emt 0:08:37]} 15. Bd3 {[%emt 0:02:45]} Qa5 {[%emt 0:08:06]} 16. Qf3 {[%emt 0:04:02]} Qh5 {[%emt 0:08:37]} 17. Qxh5 {[%emt 0:00:47]} Nxh5 {[%emt 0:00:02]} 18. Re1 {[%emt 0:01:39]} Bf4 {[%emt 0:05:46]} 19. g3 {[%emt 0:00:40]} Bxc1 {[%emt 0:00:37]} 20. Raxc1 {[%emt 0:00:10]} Rad8 {[%emt 0:00:16]} 21. Be2 {[%emt 0:05:09]} Nf6 {[%emt 0:00:13]} 22. Bf3 {[%emt 0:00:27]} Re7 {[%emt 0:12:14]} 23. Bg2 {[%emt 0:01:47]} h6 {[%emt 0:03:12]} 24. f4 {[%emt 0:01:02]} Red7 {[%emt 0:03:08]} 25. Rc2 {[%emt 0:01:09]} Nd5 {[%emt 0:00:30]} 26. Kf2 {[%emt 0:03:47]} a6 {[%emt 0:01:43]} 27. Be4 {[%emt 0:03:44]} Nf6 {[%emt 0:02:32]} 28. Bf3 {[%emt 0:00:37]} Nd5 {[%emt 0:00:25]} 29. Re5 {[%emt 0:00:36]} g6 {[%emt 0:01:43]} 30. h4 {[%emt 0:00:31]} h5 {[%emt 0:03:33]} 31. Re1 {[%emt 0:03:19]} Nb6 {[%emt 0:02:10]} 32. b3 {[%emt 0:00:39][%cal Bb2b3,Bb3b4,Bb4b5][%mdl 32]} Nd5 {[%emt 0:00:14]} 33. Rb1 {[%emt 0:03:37] Die Stellung ist ausgeglichen.} Rc7 {[%emt 0:02:23]} 34. b4 {[%emt 0:01:17]} a5 {[%emt 0:02:00]} 35. b5 {[%emt 0:05:46]} c5 {[%emt 0:02:23] [#] Droht ...cxd4 und aus.} 36. Rd1 {[%emt 0:01:38]} cxd4 {[%emt 0:03:36]} 37. Rxd4 {[%emt 0:00:10]} Rdc8 {[%emt 0:00:04]} 38. Bxd5 {[%emt 0:03:12]} exd5 {[%emt 0:00:02]} 39. Rxd5 {[%emt 0:00:11]} Rxc3 {[%emt 0:00:01]} 40. Rxc3 {[%emt 0:00:47]} Rxc3 $11 {[%emt 0:00:02] KR-KR} 41. Rd7 {[%emt 0:03:15]} Rc4 {[%emt 0:00:48]} 42. Rxb7 {[%emt 0:00:28]} Rxa4 {[%emt 0:00:01]} 43. Ra7 {[%emt 0:00:33]} Ra3 {[%emt 0:00:31]} 44. b6 {[%emt 0:00:24]} Rb3 {[%emt 0:00:03]} 45. Rxa5 {[%emt 0:00:34]} Rxb6 {[%emt 0:00:02] Gewichteter Fehlerwert: Weiß=0.07 (makellos) /Schwarz=0.07 (makellos) .  Ungenau:       	Weiß=2     	Schwarz=1     OK:         	Weiß=10    	Schwarz=16    Bester:       	---       	Schwarz=1} 1/2-1/2